[Event "Is Bankasi Online Satranc Turn 17-18 YAS"]
[Site "T#646243Mustafa Kemal"]
[Date "2020.05.22"]
[Round "3"]
[White "Mustafaberkayb82"]
[Black "Bugrahansahin14"]
[Result "0-1"]
[WhiteElo "1620"]
[BlackElo "1620"]
[Annotator "NA RC"]
[PlyCount "56"]
[EventDate "2020.05.22"]
[EventType "swiss (blitz)"]
[TimeControl "180+2"]

1. d4 {[%emt 0:00:17]} d5 {[%emt 0:00:08]} 2. c4 {[%emt 0:00:01]} dxc4 {[%emt 0:00:01]} 3. e4 {[%emt 0:00:01]} Nc6 {[%emt 0:00:02]} 4. Nf3 {[%emt 0:00:04]} Nf6 {[%emt 0:00:02]} 5. Nc3 {[%emt 0:00:04]} Ng4 {[%emt 0:00:20]} 6. Bxc4 {[%emt 0:00:15]} e5 {[%emt 0:00:07]} 7. h3 {[%emt 0:00:18]} exd4 {[%emt 0:00:03]} 8. Nxd4 {[%emt 0:00:14]} Qxd4 {[%emt 0:00:49]} 9. hxg4 {[%emt 0:00:33]} Qxc4 {[%emt 0:00:06]} 10. Qd5 {[%emt 0:00:46]} Qxd5 {[%emt 0:00:15]} 11. Nxd5 {[%emt 0:00:00]} Bd6 {[%emt 0:00:05]} 12. f3 {[%emt 0:00:09]} Nd4 {[%emt 0:00:03]} 13. Kd2 {[%emt 0:00:08]} c6 {[%emt 0:00:08]} 14. Ne3 {[%emt 0:00:05]} Be6 {[%emt 0:00:10]} 15. Rh3 {[%emt 0:00:06]} Rd8 {[%emt 0:00:12]} 16. b3 {[%emt 0:00:11]} Bf4 {[%emt 0:00:03]} 17. Kc3 {[%emt 0:00:14]} Ne2+ {[%emt 0:00:08]} 18. Kb4 {[%emt 0:00:01]} Nxc1 {[%emt 0:00:02]} 19. Rxc1 {[%emt 0:00:03]} Bxe3 {[%emt 0:00:01]} 20. Rc2 {[%emt 0:00:02]} c5+ {[%emt 0:00:14]} 21. Kb5 {[%emt 0:00:03]} Bd7+ {[%emt 0:00:07]} 22. Ka5 {[%emt 0:00:03]} b6+ {[%emt 0:00:05]} 23. Ka6 {[%emt 0:00:02]} Bc8+ {[%emt 0:00:02]} 24. Kb5 {[%emt 0:00:01]} Rd6 {[%emt 0:00:04]} 25. f4 {[%emt 0:00:02]} a6+ {[%emt 0:00:02]} 26. Kc4 {[%emt 0:00:03]} b5+ {[%emt 0:00:02]} 27. Kc3 {[%emt 0:00:03]} b4+ {[%emt 0:00:04]} 28. Kc4 {[%emt 0:00:01]} Be6# {[%emt 0:00:04] (Lag: Av=0.55s, max=2.7s)} 0-1

[Event "Is Bankasi Online Satranc Turn 17-18 YAS"]
[Site "T#646243Mustafa Kemal"]
[Date "2020.05.22"]
[Round "3"]
[White "Orhanerenkarab68"]
[Black "Ahmetozer26"]
[Result "1-0"]
[WhiteElo "1620"]
[BlackElo "1620"]
[Annotator "NA RC"]
[PlyCount "81"]
[EventDate "2020.05.22"]
[EventType "swiss (blitz)"]
[TimeControl "180+2"]

1. e4 {[%emt 0:00:04]} e5 {[%emt 0:00:04]} 2. Nf3 {[%emt 0:00:01]} Nc6 {[%emt 0:00:01]} 3. Bc4 {[%emt 0:00:02]} Bc5 {[%emt 0:00:02]} 4. d3 {[%emt 0:00:04]} Nf6 {[%emt 0:00:02]} 5. Nc3 {[%emt 0:00:02]} O-O {[%emt 0:00:04]} 6. Bg5 {[%emt 0:00:01]} d6 {[%emt 0:00:02]} 7. Nd5 {[%emt 0:00:01]} Bd7 {[%emt 0:00:44]} 8. O-O {[%emt 0:00:10]} Na5 {[%emt 0:00:14]} 9. Nxf6+ {[%emt 0:00:02]} gxf6 {[%emt 0:00:01]} 10. Bh6 {[%emt 0:00:01]} Re8 {[%emt 0:00:02]} 11. Bb3 {[%emt 0:00:15]} Nxb3 {[%emt 0:00:01]} 12. axb3 {[%emt 0:00:00]} f5 {[%emt 0:00:02]} 13. Qd2 {[%emt 0:00:03]} fxe4 {[%emt 0:00:05]} 14. dxe4 {[%emt 0:00:01]} Qf6 {[%emt 0:00:11]} 15. Bg5 {[%emt 0:00:14]} Qg6 {[%emt 0:00:19]} 16. Rfe1 {[%emt 0:00:07]} f6 {[%emt 0:00:06]} 17. Be3 {[%emt 0:00:05]} Bxe3 {[%emt 0:00:03]} 18. Qxe3 {[%emt 0:00:02]} Bc6 {[%emt 0:00:03]} 19. Rad1 {[%emt 0:00:02]} Rad8 {[%emt 0:00:03]} 20. c4 {[%emt 0:00:02]} b6 {[%emt 0:00:01]} 21. b4 {[%emt 0:00:02]} a6 {[%emt 0:00:03]} 22. b3 {[%emt 0:00:02]} Bb7 {[%emt 0:00:03]} 23. Nh4 {[%emt 0:00:02]} Qf7 {[%emt 0:00:04]} 24. Nf5 {[%emt 0:00:01]} Kh8 {[%emt 0:00:04]} 25. Qh3 {[%emt 0:00:17]} Rg8 {[%emt 0:00:04]} 26. Nh6 {[%emt 0:00:03]} Rxg2+ {[%emt 0:00:18]} 27. Kxg2 {[%emt 0:00:06]} Qg6+ {[%emt 0:00:14]} 28. Kf1 {[%emt 0:00:05]} Bxe4 {[%emt 0:00:07]} 29. Rxe4 {[%emt 0:00:10]} Qxe4 {[%emt 0:00:01]} 30. Nf7+ {[%emt 0:00:01]} Kg8 {[%emt 0:00:07]} 31. Nxd8 {[%emt 0:00:03]} Qc2 {[%emt 0:00:23]} 32. Qe6+ {[%emt 0:00:04]} Kg7 {[%emt 0:00:03]} 33. Qf7+ {[%emt 0:00:02]} Kh6 {[%emt 0:00:02]} 34. Re1 {[%emt 0:00:04]} Qxb3 {[%emt 0:00:03]} 35. Qxf6+ {[%emt 0:00:01]} Kh5 {[%emt 0:00:02]} 36. Qf5+ {[%emt 0:00:07]} Kh6 {[%emt 0:00:02]} 37. Nf7+ {[%emt 0:00:07]} Kg7 {[%emt 0:00:02]} 38. Ng5 {[%emt 0:00:02]} Qxc4+ {[%emt 0:00:04]} 39. Kg1 {[%emt 0:00:01]} Qxb4 {[%emt 0:00:05]} 40. Qxh7+ {[%emt 0:00:03]} Kf8 {[%emt 0:00:02]} 41. Qf7# {[%emt 0:00:02] (Lag: Av=0.94s, max=1.1s)} 1-0

[Event "Is Bankasi Online Satranc Turn 17-18 YAS"]
[Site "T#646243Mustafa Kemal"]
[Date "2020.05.22"]
[Round "3"]
[White "Yusufdemiral10"]
[Black "Dogukangureke78"]
[Result "0-1"]
[WhiteElo "1620"]
[BlackElo "1620"]
[Annotator "NA RC"]
[PlyCount "74"]
[EventDate "2020.05.22"]
[EventType "swiss (blitz)"]
[TimeControl "180+2"]

1. d4 {[%emt 0:00:03]} Nf6 {[%emt 0:00:03]} 2. Nf3 {[%emt 0:00:02]} d5 {[%emt 0:00:04]} 3. c4 {[%emt 0:00:01]} e6 {[%emt 0:00:03]} 4. Bg5 {[%emt 0:00:02]} Be7 {[%emt 0:00:02]} 5. e3 {[%emt 0:00:06]} O-O {[%emt 0:00:02]} 6. Nc3 {[%emt 0:00:05]} Nbd7 {[%emt 0:00:02]} 7. Bd3 {[%emt 0:00:02]} b6 {[%emt 0:00:03]} 8. cxd5 {[%emt 0:00:03]} exd5 {[%emt 0:00:02]} 9. O-O {[%emt 0:00:07]} Bb7 {[%emt 0:00:01]} 10. Bc2 {[%emt 0:00:03]} Ne4 {[%emt 0:00:05]} 11. Bxe7 {[%emt 0:00:13]} Qxe7 {[%emt 0:00:00]} 12. Bb3 {[%emt 0:00:13]} Ndf6 {[%emt 0:00:06]} 13. Rc1 {[%emt 0:00:13]} Rfd8 {[%emt 0:00:05]} 14. Nd2 {[%emt 0:00:17]} Rac8 {[%emt 0:00:08]} 15. Ndxe4 {[%emt 0:00:01]} Nxe4 {[%emt 0:00:02]} 16. Nxe4 {[%emt 0:00:20]} dxe4 {[%emt 0:00:24]} 17. Rc2 {[%emt 0:00:11]} c5 {[%emt 0:00:02]} 18. Qd2 {[%emt 0:00:11]} Ba6 {[%emt 0:00:15]} 19. Re1 {[%emt 0:00:09]} Bd3 {[%emt 0:00:02]} 20. Rc3 {[%emt 0:00:06]} cxd4 {[%emt 0:00:12]} 21. Rxc8 {[%emt 0:00:05]} Rxc8 {[%emt 0:00:00]} 22. exd4 {[%emt 0:00:01]} Qd6 {[%emt 0:00:12]} 23. Rc1 {[%emt 0:00:04]} Rd8 {[%emt 0:00:04]} 24. Bc2 {[%emt 0:00:05]} Qxd4 {[%emt 0:00:04]} 25. Bxd3 {[%emt 0:00:01]} exd3 {[%emt 0:00:04]} 26. Kf1 {[%emt 0:00:13]} g6 {[%emt 0:00:09]} 27. Rc3 {[%emt 0:00:07]} Kg7 {[%emt 0:00:07]} 28. g3 {[%emt 0:00:06]} Qd5 {[%emt 0:00:05]} 29. Kg1 {[%emt 0:00:04]} h5 {[%emt 0:00:03]} 30. h4 {[%emt 0:00:01]} b5 {[%emt 0:00:15]} 31. Rc7 {[%emt 0:00:02]} Qf3 {[%emt 0:00:20]} 32. Qc3+ {[%emt 0:00:06]} Kg8 {[%emt 0:00:05]} 33. Rc8 {[%emt 0:00:14]} Rxc8 {[%emt 0:00:18]} 34. Qxc8+ {[%emt 0:00:02]} Kh7 {[%emt 0:00:02]} 35. Qd7 {[%emt 0:00:06]} a6 {[%emt 0:00:05]} 36. Qd6 {[%emt 0:00:18]} Qe2 {[%emt 0:00:14]} 37. Qd4 {[%emt 0:00:10]} d2 {[%emt 0:00:03] Zaman (Lag: Av=0.51s, max=1.2s)} 0-1

[Event "Is Bankasi Online Satranc Turn 17-18 YAS"]
[Site "T#646243Mustafa Kemal"]
[Date "2020.05.22"]
[Round "3"]
[White "emreerdal60"]
[Black "Omeramirakdag30"]
[Result "0-1"]
[WhiteElo "1620"]
[BlackElo "1919"]
[Annotator "NA RC"]
[PlyCount "102"]
[EventDate "2020.05.22"]
[EventType "swiss (blitz)"]
[TimeControl "180+2"]

1. e4 {[%emt 0:00:04]} c5 {[%emt 0:00:06]} 2. c3 {[%emt 0:00:01]} Nf6 {[%emt 0:00:06]} 3. e5 {[%emt 0:00:02]} Nd5 {[%emt 0:00:01]} 4. d4 {[%emt 0:00:01]} cxd4 {[%emt 0:00:01]} 5. cxd4 {[%emt 0:00:01]} d6 {[%emt 0:00:04]} 6. exd6 {[%emt 0:00:10]} Qxd6 {[%emt 0:00:02]} 7. Nc3 {[%emt 0:00:01]} Nc6 {[%emt 0:00:08]} 8. Nf3 {[%emt 0:00:03]} Bg4 {[%emt 0:00:12]} 9. Be2 {[%emt 0:00:07]} e6 {[%emt 0:00:01]} 10. h3 {[%emt 0:00:08]} Bh5 {[%emt 0:00:02]} 11. O-O {[%emt 0:00:16]} a6 {[%emt 0:00:03]} 12. Nxd5 {[%emt 0:00:24]} Qxd5 {[%emt 0:00:05]} 13. Be3 {[%emt 0:00:01]} Be7 {[%emt 0:00:06]} 14. Qa4 {[%emt 0:00:12]} O-O {[%emt 0:00:08]} 15. Rac1 {[%emt 0:00:08]} Rfd8 {[%emt 0:00:25]} 16. Rfd1 {[%emt 0:00:01]} b5 {[%emt 0:00:20]} 17. Qc2 {[%emt 0:00:21]} Rac8 {[%emt 0:00:02]} 18. Qd2 {[%emt 0:00:10]} Bb4 {[%emt 0:00:08]} 19. Qd3 {[%emt 0:00:07]} Bg6 {[%emt 0:00:04]} 20. Qb3 {[%emt 0:00:01]} Qxb3 {[%emt 0:00:16]} 21. axb3 {[%emt 0:00:00]} Na5 {[%emt 0:00:05]} 22. Rxc8 {[%emt 0:00:11]} Rxc8 {[%emt 0:00:00]} 23. d5 {[%emt 0:00:01]} Nxb3 {[%emt 0:00:21]} 24. d6 {[%emt 0:00:10]} Rd8 {[%emt 0:00:26]} 25. Bb6 {[%emt 0:00:04]} Rd7 {[%emt 0:00:02]} 26. Ne5 {[%emt 0:00:01]} Rxd6 {[%emt 0:00:19]} 27. Nxg6 {[%emt 0:00:20]} hxg6 {[%emt 0:00:03]} 28. Rxd6 {[%emt 0:00:07]} Bxd6 {[%emt 0:00:00]} 29. Bd1 {[%emt 0:00:09]} Nd2 {[%emt 0:00:04]} 30. Be3 {[%emt 0:00:06]} Nc4 {[%emt 0:00:02]} 31. b3 {[%emt 0:00:03]} Ne5 {[%emt 0:00:05]} 32. f4 {[%emt 0:00:04]} Nd7 {[%emt 0:00:03]} 33. Bf3 {[%emt 0:00:02]} Kf8 {[%emt 0:00:03]} 34. Bb7 {[%emt 0:00:02]} a5 {[%emt 0:00:04]} 35. Bc6 {[%emt 0:00:01]} Ke7 {[%emt 0:00:07]} 36. Bxb5 {[%emt 0:00:02]} Bc5 {[%emt 0:00:00]} 37. Bxc5+ {[%emt 0:00:02]} Nxc5 {[%emt 0:00:00]} 38. Bc4 {[%emt 0:00:05]} Ne4 {[%emt 0:00:01]} 39. Bd3 {[%emt 0:00:07]} Nc5 {[%emt 0:00:08]} 40. Bc4 {[%emt 0:00:01]} Kd6 {[%emt 0:00:01]} 41. Kf2 {[%emt 0:00:02]} Ne4+ {[%emt 0:00:01]} 42. Ke3 {[%emt 0:00:01]} Nf6 {[%emt 0:00:02]} 43. g4 {[%emt 0:00:03]} Kc5 {[%emt 0:00:02]} 44. g5 {[%emt 0:00:05]} Nd5+ {[%emt 0:00:02]} 45. Ke4 {[%emt 0:00:02]} Nc3+ {[%emt 0:00:02]} 46. Kd3 {[%emt 0:00:01]} Nd5 {[%emt 0:00:01]} 47. Ke4 {[%emt 0:00:02]} a4 {[%emt 0:00:01]} 48. h4 {[%emt 0:00:07]} Nb6 {[%emt 0:00:04]} 49. Be2 {[%emt 0:00:07]} a3 {[%emt 0:00:01]} 50. b4+ {[%emt 0:00:02]} Kxb4 {[%emt 0:00:02]} 51. Bc4 {[%emt 0:00:01]} Kxc4 {[%emt 0:00:01] emreerdal60 resigns (Lag: Av=0.72s, max=1.2s)} 0-1

[Event "Is Bankasi Online Satranc Turn 17-18 YAS"]
[Site "T#646243Mustafa Kemal"]
[Date "2020.05.22"]
[Round "3"]
[White "keremerdal34"]
[Black "Alparslanisik80"]
[Result "0-1"]
[WhiteElo "1620"]
[BlackElo "1620"]
[Annotator "NA RC"]
[PlyCount "52"]
[EventDate "2020.05.22"]
[EventType "swiss (blitz)"]
[TimeControl "180+2"]

1. e4 {[%emt 0:00:01]} c5 {[%emt 0:00:01]} 2. c3 {[%emt 0:00:01]} Nf6 {[%emt 0:00:02]} 3. e5 {[%emt 0:00:01]} Nd5 {[%emt 0:00:01]} 4. d4 {[%emt 0:00:01]} d6 {[%emt 0:00:07]} 5. exd6 {[%emt 0:00:04]} Qxd6 {[%emt 0:00:06]} 6. Nf3 {[%emt 0:00:01]} cxd4 {[%emt 0:00:08]} 7. cxd4 {[%emt 0:00:17]} Nc6 {[%emt 0:00:05]} 8. Nc3 {[%emt 0:00:09]} g6 {[%emt 0:00:02]} 9. Bb5 {[%emt 0:00:07]} Bg7 {[%emt 0:00:04]} 10. O-O {[%emt 0:00:06]} O-O {[%emt 0:00:02]} 11. h3 {[%emt 0:00:25]} Rd8 {[%emt 0:00:17]} 12. Re1 {[%emt 0:00:27]} Bd7 {[%emt 0:00:28]} 13. Bg5 {[%emt 0:00:43]} Re8 {[%emt 0:00:21]} 14. Nxd5 {[%emt 0:00:50]} Qxd5 {[%emt 0:00:03]} 15. Bxc6 {[%emt 0:00:03]} Bxc6 {[%emt 0:00:12]} 16. Rxe7 {[%emt 0:00:03]} Rxe7 {[%emt 0:00:03]} 17. Bxe7 {[%emt 0:00:01]} Qf5 {[%emt 0:00:01]} 18. Bh4 {[%emt 0:00:12]} Bxf3 {[%emt 0:00:03]} 19. Qxf3 {[%emt 0:00:02]} Qxf3 {[%emt 0:00:02]} 20. gxf3 {[%emt 0:00:01]} Bxd4 {[%emt 0:00:00]} 21. Rb1 {[%emt 0:00:02]} Rc8 {[%emt 0:00:04]} 22. b3 {[%emt 0:00:02]} Rc2 {[%emt 0:00:01]} 23. Rd1 {[%emt 0:00:01]} Bb6 {[%emt 0:00:01]} 24. a4 {[%emt 0:00:02]} Rb2 {[%emt 0:00:04]} 25. Rd7 {[%emt 0:00:01]} Rxb3 {[%emt 0:00:02]} 26. Rxb7 {[%emt 0:00:02]} Bxf2+ {[%emt 0:00:01] keremerdal34 resigns (Lag: Av=2.00s, max=18.4s)} 0-1

[Event "Is Bankasi Online Satranc Turn 17-18 YAS"]
[Site "T#646243Mustafa Kemal"]
[Date "2020.05.22"]
[Round "3"]
[White "Ibrahimisik76"]
[Black "Hakansimsek70"]
[Result "1/2-1/2"]
[WhiteElo "1523"]
[BlackElo "1645"]
[Annotator "NA RC"]
[PlyCount "159"]
[EventDate "2020.05.22"]
[EventType "swiss (blitz)"]
[TimeControl "180+2"]

1. e4 {[%emt 0:00:03]} e5 {[%emt 0:00:01]} 2. Nf3 {[%emt 0:00:03]} Nc6 {[%emt 0:00:01]} 3. Be2 {[%emt 0:00:02]} Nf6 {[%emt 0:00:04]} 4. d3 {[%emt 0:00:01]} Bc5 {[%emt 0:00:05]} 5. Nc3 {[%emt 0:00:01]} O-O {[%emt 0:00:04]} 6. h3 {[%emt 0:00:02]} h6 {[%emt 0:00:01]} 7. Be3 {[%emt 0:00:01]} Bxe3 {[%emt 0:00:02]} 8. fxe3 {[%emt 0:00:00]} Re8 {[%emt 0:00:01]} 9. Qd2 {[%emt 0:00:01]} d6 {[%emt 0:00:08]} 10. O-O-O {[%emt 0:00:01]} a5 {[%emt 0:00:11]} 11. Kb1 {[%emt 0:00:02]} Be6 {[%emt 0:00:06]} 12. Rdg1 {[%emt 0:00:02]} Qd7 {[%emt 0:00:20]} 13. d4 {[%emt 0:00:02]} exd4 {[%emt 0:00:05]} 14. exd4 {[%emt 0:00:01]} d5 {[%emt 0:00:01]} 15. e5 {[%emt 0:00:02]} Ne4 {[%emt 0:00:13]} 16. Nxe4 {[%emt 0:00:02]} dxe4 {[%emt 0:00:00]} 17. Ne1 {[%emt 0:00:09]} Qd5 {[%emt 0:00:08]} 18. b3 {[%emt 0:00:04]} Qxd4 {[%emt 0:00:04]} 19. Qc1 {[%emt 0:00:11]} Qxe5 {[%emt 0:00:05]} 20. g4 {[%emt 0:00:02]} a4 {[%emt 0:00:10]} 21. h4 {[%emt 0:00:03]} axb3 {[%emt 0:00:07]} 22. cxb3 {[%emt 0:00:02]} Bxb3 {[%emt 0:00:06]} 23. Qb2 {[%emt 0:00:02]} Bxa2+ {[%emt 0:00:13]} 24. Kc1 {[%emt 0:00:03]} Qc5+ {[%emt 0:00:11]} 25. Qc2 {[%emt 0:00:09]} Qxc2+ {[%emt 0:00:04]} 26. Kxc2 {[%emt 0:00:00]} Nd4+ {[%emt 0:00:01]} 27. Kd2 {[%emt 0:00:06]} e3+ {[%emt 0:00:01]} 28. Kd3 {[%emt 0:00:09]} Nxe2 {[%emt 0:00:10]} 29. Kxe2 {[%emt 0:00:02]} Bc4+ {[%emt 0:00:02]} 30. Kd1 {[%emt 0:00:15]} e2+ {[%emt 0:00:03]} 31. Kd2 {[%emt 0:00:02]} Ra2+ {[%emt 0:00:07]} 32. Kc3 {[%emt 0:00:04]} b5 {[%emt 0:00:08]} 33. g5 {[%emt 0:00:08]} h5 {[%emt 0:00:09]} 34. g6 {[%emt 0:00:02]} Ra3+ {[%emt 0:00:15]} 35. Kb4 {[%emt 0:00:06]} Rb3+ {[%emt 0:00:02]} 36. Kc5 {[%emt 0:00:02]} Re5+ {[%emt 0:00:09]} 37. Kd4 {[%emt 0:00:15]} Rd5+ {[%emt 0:00:01]} 38. Ke4 {[%emt 0:00:03]} Rd7 {[%emt 0:00:10]} 39. gxf7+ {[%emt 0:00:04]} Kxf7 {[%emt 0:00:04]} 40. Rg5 {[%emt 0:00:05]} Be6 {[%emt 0:00:13]} 41. Rhg1 {[%emt 0:00:14]} Rb4+ {[%emt 0:00:01]} 42. Ke3 {[%emt 0:00:08]} Rb3+ {[%emt 0:00:03]} 43. Kxe2 {[%emt 0:00:02]} Bc4+ {[%emt 0:00:04]} 44. Nd3 {[%emt 0:00:27]} Bxd3+ {[%emt 0:00:01]} 45. Kd2 {[%emt 0:00:02]} Bg6+ {[%emt 0:00:05]} 46. Ke2 {[%emt 0:00:13]} Rb2+ {[%emt 0:00:03]} 47. Ke3 {[%emt 0:00:03]} Rd3+ {[%emt 0:00:02]} 48. Kf4 {[%emt 0:00:01]} Rb4+ {[%emt 0:00:01]} 49. Ke5 {[%emt 0:00:03]} Re3+ {[%emt 0:00:01]} 50. Kd5 {[%emt 0:00:05]} Be4+ {[%emt 0:00:02]} 51. Kc5 {[%emt 0:00:03]} Rc4+ {[%emt 0:00:04]} 52. Kxb5 {[%emt 0:00:03]} Rc6 {[%emt 0:00:08]} 53. Rxg7+ {[%emt 0:00:02]} Ke6 {[%emt 0:00:01]} 54. R1g6+ {[%emt 0:00:09]} Ke5 {[%emt 0:00:03]} 55. Rxc6 {[%emt 0:00:04]} Bxc6+ {[%emt 0:00:01]} 56. Kxc6 {[%emt 0:00:01]} Rc3+ {[%emt 0:00:01]} 57. Kb5 {[%emt 0:00:04]} c6+ {[%emt 0:00:01]} 58. Kb4 {[%emt 0:00:02]} Rh3 {[%emt 0:00:05]} 59. Rg5+ {[%emt 0:00:02]} Kf4 {[%emt 0:00:03]} 60. Rxh5 {[%emt 0:00:01]} Kg4 {[%emt 0:00:04]} 61. Rc5 {[%emt 0:00:07]} Re3 {[%emt 0:00:02]} 62. h5 {[%emt 0:00:08]} Re6 {[%emt 0:00:01]} 63. Ka5 {[%emt 0:00:03]} Rh6 {[%emt 0:00:01]} 64. Kb6 {[%emt 0:00:03]} Rxh5 {[%emt 0:00:01]} 65. Rxc6 {[%emt 0:00:02]} Rg5 {[%emt 0:00:02]} 66. Rc4+ {[%emt 0:00:02]} Kf3 {[%emt 0:00:01]} 67. Kc6 {[%emt 0:00:03]} Re5 {[%emt 0:00:02]} 68. Kd6 {[%emt 0:00:01]} Re3 {[%emt 0:00:01]} 69. Rc8 {[%emt 0:00:06]} Rd3+ {[%emt 0:00:01]} 70. Ke5 {[%emt 0:00:02]} Re3+ {[%emt 0:00:01]} 71. Kd4 {[%emt 0:00:01]} Re4+ {[%emt 0:00:01]} 72. Kd5 {[%emt 0:00:01]} Rf4 {[%emt 0:00:05]} 73. Rc3+ {[%emt 0:00:02]} Kg4 {[%emt 0:00:02]} 74. Ke5 {[%emt 0:00:02]} Rf5+ {[%emt 0:00:05]} 75. Ke6 {[%emt 0:00:01]} Rf4 {[%emt 0:00:02]} 76. Rc8 {[%emt 0:00:02]} Kf3 {[%emt 0:00:02]} 77. Ke5 {[%emt 0:00:02]} Re4+ {[%emt 0:00:01]} 78. Kd5 {[%emt 0:00:01]} Rf4 {[%emt 0:00:04]} 79. Ke5 {[%emt 0:00:03]} Re4+ {[%emt 0:00:01]} 80. Kd5 {[%emt 0:00:01] (Lag: Av=0.83s, max=1.1s)} 1/2-1/2

[Event "Is Bankasi Online Satranc Turn 17-18 YAS"]
[Site "T#646243Mustafa Kemal"]
[Date "2020.05.22"]
[Round "4"]
[White "Umuterdemgundu70"]
[Black "tunaonatnalban08"]
[Result "1/2-1/2"]
[WhiteElo "1815"]
[BlackElo "2048"]
[Annotator "NA RC"]
[PlyCount "71"]
[EventDate "2020.05.22"]
[EventType "swiss (blitz)"]
[TimeControl "180+2"]

1. e4 {[%emt 0:00:01]} c6 {[%emt 0:00:07]} 2. d4 {[%emt 0:00:02]} d5 {[%emt 0:00:01]} 3. Nc3 {[%emt 0:00:01]} g6 {[%emt 0:00:02]} 4. h3 {[%emt 0:00:13]} Bg7 {[%emt 0:00:03]} 5. Nf3 {[%emt 0:00:00]} Nh6 {[%emt 0:00:02]} 6. Bd3 {[%emt 0:00:11]} O-O {[%emt 0:00:02]} 7. O-O {[%emt 0:00:01]} f6 {[%emt 0:00:01]} 8. Bf4 {[%emt 0:00:26]} Nf7 {[%emt 0:00:03]} 9. e5 {[%emt 0:00:05]} fxe5 {[%emt 0:00:21]} 10. Nxe5 {[%emt 0:00:01]} Nxe5 {[%emt 0:00:06]} 11. Bxe5 {[%emt 0:00:00]} Bxe5 {[%emt 0:00:03]} 12. dxe5 {[%emt 0:00:00]} Bf5 {[%emt 0:00:06]} 13. Ne2 {[%emt 0:00:20]} c5 {[%emt 0:00:06]} 14. Bxf5 {[%emt 0:00:05]} Rxf5 {[%emt 0:00:00]} 15. f4 {[%emt 0:00:01]} Nc6 {[%emt 0:00:03]} 16. Ng3 {[%emt 0:00:10]} Rf7 {[%emt 0:00:06]} 17. Qg4 {[%emt 0:00:02]} Nd4 {[%emt 0:00:04]} 18. c3 {[%emt 0:00:40]} Nf5 {[%emt 0:00:10]} 19. Rf2 {[%emt 0:00:12]} e6 {[%emt 0:00:05]} 20. Nf1 {[%emt 0:00:10]} d4 {[%emt 0:00:08]} 21. Rd1 {[%emt 0:00:01]} Qb6 {[%emt 0:00:08]} 22. Qe2 {[%emt 0:00:04]} Rd8 {[%emt 0:00:07]} 23. g4 {[%emt 0:00:02]} Nh4 {[%emt 0:00:05]} 24. Ng3 {[%emt 0:00:01]} dxc3 {[%emt 0:00:18]} 25. bxc3 {[%emt 0:00:06]} Rxd1+ {[%emt 0:00:07]} 26. Qxd1 {[%emt 0:00:00]} c4 {[%emt 0:00:03]} 27. Kf1 {[%emt 0:00:11]} Rf8 {[%emt 0:00:05]} 28. Ne4 {[%emt 0:00:03]} Rd8 {[%emt 0:00:04]} 29. Rd2 {[%emt 0:00:08]} Rxd2 {[%emt 0:00:05]} 30. Qxd2 {[%emt 0:00:00]} Qb1+ {[%emt 0:00:10]} 31. Kf2 {[%emt 0:00:15]} Qxe4 {[%emt 0:00:06]} 32. Qd8+ {[%emt 0:00:01]} Kg7 {[%emt 0:00:06]} 33. Qf6+ {[%emt 0:00:02]} Kg8 {[%emt 0:00:04]} 34. Qd8+ {[%emt 0:00:01]} Kg7 {[%emt 0:00:04]} 35. Qf6+ {[%emt 0:00:01]} Kg8 {[%emt 0:00:01]} 36. Qd8+ {[%emt 0:00:01] (Lag: Av=0.58s, max=9.9s)} 1/2-1/2